[Event "*** Titled Tuesday Blitz"]
[Site "Chess.com"]
[Date "2020.05.05"]
[Round "9"]
[White "keepitcool9499"]
[Black "Misticpikachu"]
[Result "1-0"]
[WhiteElo "2470"]
[BlackElo "2308"]
[TimeControl "180+1"]
[EndTime "11:49:10 PDT"]
[Termination "keepitcool9499 won by checkmate"]

1. d4 {[%clk 0:03:00.9]} 1... d5 {[%clk 0:03:00]} 2. c4 {[%clk 0:03:00.5]} 2...
e6 {[%clk 0:03:00.5]} 3. Nc3 {[%clk 0:03:00]} 3... Nf6 {[%clk 0:03:00.9]} 4. Nf3
{[%clk 0:03:00.9]} 4... Be7 {[%clk 0:03:00.4]} 5. e3 {[%clk 0:03:01.5]} 5... O-O
{[%clk 0:03:00.8]} 6. Bd3 {[%clk 0:03:01.9]} 6... dxc4 {[%clk 0:03:00.3]} 7.
Bxc4 {[%clk 0:03:02.8]} 7... b6 {[%clk 0:03:00.6]} 8. O-O {[%clk 0:03:02.4]}
8... Bb7 {[%clk 0:03:00.9]} 9. b3 {[%clk 0:03:00.1]} 9... Nbd7 {[%clk
0:02:52.7]} 10. Bb2 {[%clk 0:02:59.6]} 10... c5 {[%clk 0:02:52.9]} 11. Be2
{[%clk 0:02:59.1]} 11... Rc8 {[%clk 0:02:42.8]} 12. Rc1 {[%clk 0:02:49.9]} 12...
cxd4 {[%clk 0:02:41.7]} 13. Qxd4 {[%clk 0:02:23.5]} 13... Nc5 {[%clk 0:02:39]}
14. Rfd1 {[%clk 0:02:20.2]} 14... Qxd4 {[%clk 0:02:37.9]} 15. Nxd4 {[%clk
0:02:19.9]} 15... Rfd8 {[%clk 0:02:36.1]} 16. Ncb5 {[%clk 0:02:17.7]} 16... a6
{[%clk 0:02:30.1]} 17. Nc3 {[%clk 0:02:11]} 17... Nce4 {[%clk 0:02:14.2]} 18.
Nxe4 {[%clk 0:02:08.3]} 18... Nxe4 {[%clk 0:02:13.9]} 19. f3 {[%clk 0:02:04.9]}
19... Nf6 {[%clk 0:02:07.6]} 20. Kf2 {[%clk 0:02:01.2]} 20... b5 {[%clk
0:01:48.2]} 21. e4 {[%clk 0:01:47.6]} 21... Bc5 {[%clk 0:01:40.6]} 22. Kf1
{[%clk 0:01:28.6]} 22... Bb6 {[%clk 0:01:27.5]} 23. Rxc8 {[%clk 0:01:17.2]}
23... Rxc8 {[%clk 0:01:24.7]} 24. a4 {[%clk 0:01:14.7]} 24... bxa4 {[%clk
0:01:10]} 25. bxa4 {[%clk 0:01:15.6]} 25... Rd8 {[%clk 0:01:06.3]} 26. Nb3
{[%clk 0:01:10]} 26... Rxd1+ {[%clk 0:01:02.7]} 27. Bxd1 {[%clk 0:01:10.9]}
27... Bc6 {[%clk 0:00:55.7]} 28. Nd4 {[%clk 0:01:01.5]} 28... Be8 {[%clk
0:00:46.4]} 29. Ke2 {[%clk 0:00:55.1]} 29... Kf8 {[%clk 0:00:45.7]} 30. Bc3
{[%clk 0:00:52]} 30... Ke7 {[%clk 0:00:43.4]} 31. a5 {[%clk 0:00:48.8]} 31...
Bc7 {[%clk 0:00:21.1]} 32. Bb3 {[%clk 0:00:44.4]} 32... Nd7 {[%clk 0:00:15.9]}
33. g3 {[%clk 0:00:40.6]} 33... Nc5 {[%clk 0:00:15.7]} 34. Bb4 {[%clk
0:00:37.1]} 34... Bd6 {[%clk 0:00:14.5]} 35. e5 {[%clk 0:00:34.6]} 35... Bxe5
{[%clk 0:00:07.4]} 36. Bxc5+ {[%clk 0:00:33.6]} 36... Bd6 {[%clk 0:00:07.1]} 37.
Bxd6+ {[%clk 0:00:33.1]} 37... Kxd6 {[%clk 0:00:08]} 38. Kd3 {[%clk 0:00:32.8]}
38... Kc5 {[%clk 0:00:07.9]} 39. f4 {[%clk 0:00:31.3]} 39... Kb4 {[%clk
0:00:07]} 40. Bc4 {[%clk 0:00:30.5]} 40... Kxa5 {[%clk 0:00:07]} 41. Nf3 {[%clk
0:00:29.6]} 41... Kb6 {[%clk 0:00:05.7]} 42. Ne5 {[%clk 0:00:29.2]} 42... f6
{[%clk 0:00:05.4]} 43. Nf3 {[%clk 0:00:28.4]} 43... Bd7 {[%clk 0:00:05.8]} 44.
Nd4 {[%clk 0:00:28]} 44... e5 {[%clk 0:00:05]} 45. fxe5 {[%clk 0:00:28.9]} 45...
fxe5 {[%clk 0:00:05.9]} 46. Nf3 {[%clk 0:00:29.5]} 46... e4+ {[%clk 0:00:02.2]}
47. Kxe4 {[%clk 0:00:29.5]} 47... Bc6+ {[%clk 0:00:03.1]} 48. Ke3 {[%clk
0:00:29.7]} 48... a5 {[%clk 0:00:04]} 49. Ne5 {[%clk 0:00:29.4]} 49... Bg2
{[%clk 0:00:03.6]} 50. Bg8 {[%clk 0:00:29.4]} 50... h6 {[%clk 0:00:03.2]} 51.
Ba2 {[%clk 0:00:28]} 51... Kc5 {[%clk 0:00:03.5]} 52. Nd3+ {[%clk 0:00:27.4]}
52... Kd6 {[%clk 0:00:03]} 53. Nf4 {[%clk 0:00:27.8]} 53... Bh1 {[%clk
0:00:02.7]} 54. Nh5 {[%clk 0:00:27.7]} 54... g5 {[%clk 0:00:02.2]} 55. Nf6
{[%clk 0:00:27.4]} 55... a4 {[%clk 0:00:03.1]} 56. Ng4 {[%clk 0:00:27]} 56... a3
{[%clk 0:00:03]} 57. Nxh6 {[%clk 0:00:26.5]} 57... Bd5 {[%clk 0:00:03.3]} 58.
Nf5+ {[%clk 0:00:26.7]} 58... Ke5 {[%clk 0:00:03.3]} 59. Bxd5 {[%clk 0:00:23.4]}
59... Kxd5 {[%clk 0:00:03.5]} 60. Nd4 {[%clk 0:00:23.9]} 60... Kc4 {[%clk
0:00:03.4]} 61. Nc2 {[%clk 0:00:24.1]} 61... Kb3 {[%clk 0:00:03.8]} 62. Kd2
{[%clk 0:00:23.6]} 62... Kb2 {[%clk 0:00:04.2]} 63. h4 {[%clk 0:00:23.2]} 63...
gxh4 {[%clk 0:00:04.5]} 64. gxh4 {[%clk 0:00:23.3]} 64... a2 {[%clk 0:00:05.4]}
65. h5 {[%clk 0:00:23.3]} 65... Kb1 {[%clk 0:00:05.6]} 66. h6 {[%clk 0:00:23.1]}
66... Kb2 {[%clk 0:00:05.9]} 67. h7 {[%clk 0:00:22.5]} 67... Kb1 {[%clk
0:00:03.2]} 68. h8=Q {[%clk 0:00:22.1]} 68... a1=Q {[%clk 0:00:02.2]} 69. Qxa1#
{[%clk 0:00:22.3]} 1-0

[Event "*** Titled Tuesday Blitz"]
[Site "Chess.com"]
[Date "2020.05.05"]
[Round "9"]
[White "regular_legs"]
[Black "Gordima"]
[Result "1/2-1/2"]
[WhiteElo "2619"]
[BlackElo "2781"]
[TimeControl "180+1"]
[EndTime "11:49:11 PDT"]
[Termination "Game drawn by repetition"]

1. d4 {[%clk 0:02:59.4]} 1... d5 {[%clk 0:02:59.8]} 2. c4 {[%clk 0:02:55.6]}
2... e6 {[%clk 0:02:59.5]} 3. Nc3 {[%clk 0:02:55.7]} 3... Bb4 {[%clk 0:02:58.8]}
4. Nf3 {[%clk 0:02:55.4]} 4... Nf6 {[%clk 0:02:58.7]} 5. Bg5 {[%clk 0:02:54]}
5... h6 {[%clk 0:02:58.3]} 6. Bxf6 {[%clk 0:02:53.4]} 6... Qxf6 {[%clk
0:02:59.2]} 7. Qb3 {[%clk 0:02:54]} 7... c5 {[%clk 0:02:56.6]} 8. cxd5 {[%clk
0:02:37.3]} 8... exd5 {[%clk 0:02:54.7]} 9. a3 {[%clk 0:02:37.5]} 9... Bxc3+
{[%clk 0:02:50.3]} 10. Qxc3 {[%clk 0:02:38.4]} 10... b6 {[%clk 0:02:43.6]} 11.
dxc5 {[%clk 0:02:36.7]} 11... Qxc3+ {[%clk 0:02:43]} 12. bxc3 {[%clk 0:02:37.6]}
12... bxc5 {[%clk 0:02:43.5]} 13. e3 {[%clk 0:02:15.9]} 13... Be6 {[%clk
0:02:40.2]} 14. Rb1 {[%clk 0:02:14.5]} 14... Nd7 {[%clk 0:02:39.4]} 15. Bb5
{[%clk 0:02:01.8]} 15... Ke7 {[%clk 0:02:38.5]} 16. Bxd7 {[%clk 0:02:01.1]}
16... Bxd7 {[%clk 0:02:34]} 17. Kd2 {[%clk 0:02:02]} 17... Rab8 {[%clk
0:02:30.8]} 18. Ne5 {[%clk 0:01:58.7]} 18... Ba4 {[%clk 0:02:27.9]} 19. c4
{[%clk 0:01:55.6]} 19... dxc4 {[%clk 0:01:38.3]} 20. Nxc4 {[%clk 0:01:47]} 20...
Rbd8+ {[%clk 0:01:31.1]} 21. Kc3 {[%clk 0:01:46.6]} 21... Rd7 {[%clk 0:01:31.7]}
22. Ne5 {[%clk 0:01:44]} 22... Rc7 {[%clk 0:01:27.5]} 23. Rb2 {[%clk 0:01:39.6]}
23... Ke6 {[%clk 0:01:23.3]} 24. Nc4 {[%clk 0:01:36.7]} 24... Rd8 {[%clk
0:01:22.2]} 25. Rd2 {[%clk 0:01:36.7]} 25... Rxd2 {[%clk 0:01:16.7]} 26. Nxd2
{[%clk 0:01:35.9]} 26... Rb7 {[%clk 0:01:11]} 27. f3 {[%clk 0:01:26.1]} 27...
Bc6 {[%clk 0:01:04.3]} 28. Rc1 {[%clk 0:01:19.3]} 28... f5 {[%clk 0:01:00.1]}
29. Nb3 {[%clk 0:01:06.7]} 29... Kd6 {[%clk 0:00:34.7]} 30. Rd1+ {[%clk
0:01:06.1]} 30... Bd5 {[%clk 0:00:35.1]} 31. Na5 {[%clk 0:00:52.3]} 31... Rb5
{[%clk 0:00:34.9]} 32. e4 {[%clk 0:00:52]} 32... fxe4 {[%clk 0:00:32.6]} 33.
fxe4 {[%clk 0:00:52.9]} 33... Rxa5 {[%clk 0:00:33]} 34. Rxd5+ {[%clk 0:00:53.3]}
34... Kc6 {[%clk 0:00:26.9]} 35. Kb3 {[%clk 0:00:50.7]} 35... Rb5+ {[%clk
0:00:22.8]} 36. Kc3 {[%clk 0:00:50.6]} 36... Rb1 {[%clk 0:00:18.8]} 37. Rf5
{[%clk 0:00:47.3]} 37... a5 {[%clk 0:00:17.4]} 38. Rf3 {[%clk 0:00:30.2]} 38...
a4 {[%clk 0:00:16.3]} 39. Rg3 {[%clk 0:00:23.9]} 39... g5 {[%clk 0:00:09.8]} 40.
Rf3 {[%clk 0:00:23.4]} 40... Kb5 {[%clk 0:00:08]} 41. Re3 {[%clk 0:00:22]} 41...
Rb3+ {[%clk 0:00:06.5]} 42. Kd2 {[%clk 0:00:22.1]} 42... Rxe3 {[%clk 0:00:07]}
43. Kxe3 {[%clk 0:00:23]} 43... Kc4 {[%clk 0:00:07.7]} 44. g4 {[%clk 0:00:22.8]}
44... Kb3 {[%clk 0:00:06.5]} 45. e5 {[%clk 0:00:22.7]} 45... c4 {[%clk
0:00:07.1]} 46. e6 {[%clk 0:00:23]} 46... c3 {[%clk 0:00:07.8]} 47. e7 {[%clk
0:00:23.5]} 47... c2 {[%clk 0:00:08.5]} 48. e8=Q {[%clk 0:00:22.2]} 48... c1=Q+
{[%clk 0:00:09.1]} 49. Kf2 {[%clk 0:00:21.9]} 49... Qf4+ {[%clk 0:00:08]} 50.
Ke1 {[%clk 0:00:21.8]} 50... Qxg4 {[%clk 0:00:03.6]} 51. Qe3+ {[%clk 0:00:19.6]}
51... Ka2 {[%clk 0:00:03.4]} 52. h3 {[%clk 0:00:14.6]} 52... Qc4 {[%clk
0:00:02.6]} 53. Kf2 {[%clk 0:00:12.2]} 53... Kb2 {[%clk 0:00:02.5]} 54. Qe7
{[%clk 0:00:09.6]} 54... Qc2+ {[%clk 0:00:02.1]} 55. Kg3 {[%clk 0:00:09.9]}
55... Qb3+ {[%clk 0:00:02.7]} 56. Kg4 {[%clk 0:00:10.5]} 56... Qxa3 {[%clk
0:00:03.2]} 57. Qe2+ {[%clk 0:00:11.2]} 57... Kb3 {[%clk 0:00:03.2]} 58. Qd3+
{[%clk 0:00:10.3]} 58... Ka2 {[%clk 0:00:03.8]} 59. Qc2+ {[%clk 0:00:09.7]}
59... Ka1 {[%clk 0:00:03.9]} 60. Qd1+ {[%clk 0:00:08.2]} 60... Kb2 {[%clk
0:00:04.1]} 61. Qd2+ {[%clk 0:00:08.4]} 61... Kb3 {[%clk 0:00:04.1]} 62. Qd3+
{[%clk 0:00:08.6]} 62... Kb4 {[%clk 0:00:04.4]} 63. Qd6+ {[%clk 0:00:08.6]}
63... Kb3 {[%clk 0:00:05]} 64. Qd3+ {[%clk 0:00:09.2]} 1/2-1/2

[Event "*** Titled Tuesday Blitz"]
[Site "Chess.com"]
[Date "2020.05.05"]
[Round "9"]
[White "AnishGiri"]
[Black "VerdeNotte"]
[Result "1/2-1/2"]
[WhiteElo "3039"]
[BlackElo "2849"]
[TimeControl "180+1"]
[EndTime "11:49:12 PDT"]
[Termination "Game drawn by agreement"]

1. e4 {[%clk 0:03:00]} 1... e5 {[%clk 0:02:57.1]} 2. Nf3 {[%clk 0:03:00.2]} 2...
Nc6 {[%clk 0:02:56.9]} 3. Bb5 {[%clk 0:03:00.5]} 3... a6 {[%clk 0:02:55.3]} 4.
Ba4 {[%clk 0:03:00.3]} 4... d6 {[%clk 0:02:55.8]} 5. O-O {[%clk 0:02:59.3]} 5...
Bd7 {[%clk 0:02:54.2]} 6. c3 {[%clk 0:02:54.2]} 6... g6 {[%clk 0:02:54.4]} 7. d4
{[%clk 0:02:54]} 7... Bg7 {[%clk 0:02:54.6]} 8. h3 {[%clk 0:02:40.8]} 8... Nf6
{[%clk 0:02:54.2]} 9. Bc2 {[%clk 0:02:40.2]} 9... O-O {[%clk 0:02:44.1]} 10. Be3
{[%clk 0:02:38.7]} 10... exd4 {[%clk 0:02:42.7]} 11. cxd4 {[%clk 0:02:38.3]}
11... Nb4 {[%clk 0:02:43.1]} 12. Nc3 {[%clk 0:02:36.6]} 12... Nxc2 {[%clk
0:02:42.8]} 13. Qxc2 {[%clk 0:02:36.5]} 13... Re8 {[%clk 0:02:43.3]} 14. e5
{[%clk 0:02:22.2]} 14... Bf5 {[%clk 0:02:34.7]} 15. Qb3 {[%clk 0:02:16.8]} 15...
dxe5 {[%clk 0:02:28]} 16. dxe5 {[%clk 0:02:16.5]} 16... Nd7 {[%clk 0:02:27.2]}
17. Qxb7 {[%clk 0:02:11.7]} 17... Nxe5 {[%clk 0:02:21.8]} 18. Rfd1 {[%clk
0:02:07.7]} 18... Qb8 {[%clk 0:02:20.1]} 19. Qd5 {[%clk 0:02:01.5]} 19... c6
{[%clk 0:02:18]} 20. Qb3 {[%clk 0:02:01.5]} 20... Nxf3+ {[%clk 0:02:17.8]} 21.
gxf3 {[%clk 0:02:02.1]} 21... Bxh3 {[%clk 0:02:09.4]} 22. Ne4 {[%clk 0:01:58.4]}
22... Be6 {[%clk 0:02:01.5]} 23. Qxb8 {[%clk 0:01:43.1]} 23... Rexb8 {[%clk
0:01:58.1]} 24. Rac1 {[%clk 0:01:37.6]} 24... Rxb2 {[%clk 0:01:52.2]} 25. Rxc6
{[%clk 0:01:37.5]} 25... Rxa2 {[%clk 0:01:50.8]} 26. Nc5 {[%clk 0:01:35.8]}
26... Bc4 {[%clk 0:01:20]} 27. Rc7 {[%clk 0:01:35.9]} 27... h5 {[%clk
0:01:14.6]} 28. Nd7 {[%clk 0:01:32.3]} 28... Be2 {[%clk 0:01:12.3]} 29. Rd6
{[%clk 0:01:25.8]} 29... Bxf3 {[%clk 0:01:06.6]} 30. Nf6+ {[%clk 0:01:26.2]}
30... Bxf6 {[%clk 0:01:04.6]} 31. Rxf6 {[%clk 0:01:27.1]} 31... Bd5 {[%clk
0:01:01.8]} 32. Rd6 {[%clk 0:01:27.6]} 32... Be6 {[%clk 0:00:52.2]} 33. Bd4
{[%clk 0:01:28]} 33... Rd2 {[%clk 0:00:45.9]} 34. Ra7 {[%clk 0:01:24]} 34... Rc8
{[%clk 0:00:29.7]} 35. Raxa6 {[%clk 0:01:24.2]} 35... h4 {[%clk 0:00:18]} 36.
Rac6 {[%clk 0:01:14.2]} 36... Rd1+ {[%clk 0:00:13.5]} 37. Kh2 {[%clk 0:01:13.7]}
37... Re8 {[%clk 0:00:13.6]} 38. Rc3 {[%clk 0:00:51.2]} 38... Kh7 {[%clk
0:00:11.5]} 39. Re3 {[%clk 0:00:49.7]} 39... g5 {[%clk 0:00:10.8]} 40. Re5
{[%clk 0:00:45.2]} 40... Kg6 {[%clk 0:00:09.7]} 41. Rxg5+ {[%clk 0:00:45.3]}
41... Kxg5 {[%clk 0:00:08.1]} 42. Be3+ {[%clk 0:00:46]} 42... Kh5 {[%clk
0:00:06.5]} 43. Rxd1 {[%clk 0:00:46.6]} 43... Bg4 {[%clk 0:00:06.8]} 44. Rd5+
{[%clk 0:00:44.3]} 44... f5 {[%clk 0:00:02.9]} 45. Rd6 {[%clk 0:00:43.9]} 45...
f4 {[%clk 0:00:03.4]} 46. Bxf4 {[%clk 0:00:40.5]} 46... Be6 {[%clk 0:00:04.3]}
47. Be3 {[%clk 0:00:36.8]} 47... Kg4 {[%clk 0:00:04.4]} 48. Rd4+ {[%clk
0:00:36.6]} 48... Kh5 {[%clk 0:00:04.7]} 49. Rd6 {[%clk 0:00:35.1]} 49... h3
{[%clk 0:00:05]} 50. f3 {[%clk 0:00:32.6]} 50... Kg6 {[%clk 0:00:05]} 51. Bf2
{[%clk 0:00:29.4]} 51... Kf7 {[%clk 0:00:05.9]} 52. Bg3 {[%clk 0:00:29]} 52...
Rc8 {[%clk 0:00:06.2]} 53. Rd2 {[%clk 0:00:29.2]} 53... Rc3 {[%clk 0:00:06.4]}
54. Rf2 {[%clk 0:00:29.1]} 54... Rd3 {[%clk 0:00:06.9]} 55. Bf4 {[%clk
0:00:29.3]} 55... Bf5 {[%clk 0:00:07.3]} 56. Kg3 {[%clk 0:00:29.6]} 56... Kg6
{[%clk 0:00:07.5]} 57. Rb2 {[%clk 0:00:28.8]} 57... Rd1 {[%clk 0:00:07.3]} 58.
Rb6+ {[%clk 0:00:28.2]} 58... Kf7 {[%clk 0:00:07.4]} 59. Rb2 {[%clk 0:00:21.3]}
59... Rg1+ {[%clk 0:00:07.6]} 60. Kh2 {[%clk 0:00:21.5]} 60... Rf1 {[%clk
0:00:08]} 61. Kg3 {[%clk 0:00:21.6]} 61... Ke6 {[%clk 0:00:08.4]} 62. Re2+
{[%clk 0:00:20.9]} 62... Kf7 {[%clk 0:00:08.3]} 63. Rd2 {[%clk 0:00:21.3]} 63...
Be6 {[%clk 0:00:08.7]} 64. Rf2 {[%clk 0:00:17.4]} 64... Rg1+ {[%clk 0:00:07.9]}
65. Kh2 {[%clk 0:00:17.8]} 65... Rg6 {[%clk 0:00:08]} 66. Bg3 {[%clk 0:00:18.2]}
66... Kf6 {[%clk 0:00:08]} 67. Re2 {[%clk 0:00:18.3]} 67... Kf7 {[%clk
0:00:07.5]} 68. Rd2 {[%clk 0:00:18.1]} 68... Rf6 {[%clk 0:00:07.5]} 69. Rd4
{[%clk 0:00:17.9]} 69... Rxf3 {[%clk 0:00:06.8]} 70. Rf4+ {[%clk 0:00:18.3]}
70... Rxf4 {[%clk 0:00:07.3]} 71. Bxf4 {[%clk 0:00:19.2]} 71... Kg6 {[%clk
0:00:06.9]} 1/2-1/2

[Event "*** Titled Tuesday Blitz"]
[Site "Chess.com"]
[Date "2020.05.05"]
[Round "9"]
[White "madalin18"]
[Black "Caisachess"]
[Result "1-0"]
[WhiteElo "2179"]
[BlackElo "2319"]
[TimeControl "180+1"]
[EndTime "11:49:12 PDT"]
[Termination "madalin18 won on time"]

1. e4 {[%clk 0:03:00.9]} 1... e5 {[%clk 0:02:59.6]} 2. Nf3 {[%clk 0:03:00.4]}
2... Nc6 {[%clk 0:03:00.2]} 3. d4 {[%clk 0:02:58.1]} 3... exd4 {[%clk
0:02:59.4]} 4. Nxd4 {[%clk 0:02:58.7]} 4... Bb4+ {[%clk 0:02:59.9]} 5. c3 {[%clk
0:02:57.7]} 5... Bc5 {[%clk 0:03:00.3]} 6. Be3 {[%clk 0:02:56]} 6... Bb6 {[%clk
0:03:00.6]} 7. Bc4 {[%clk 0:02:54.9]} 7... Nf6 {[%clk 0:02:59.6]} 8. O-O {[%clk
0:02:45.6]} 8... O-O {[%clk 0:02:58.1]} 9. Nd2 {[%clk 0:02:33.6]} 9... d5 {[%clk
0:02:56]} 10. exd5 {[%clk 0:02:18.9]} 10... Nxd4 {[%clk 0:02:55.1]} 11. Bxd4
{[%clk 0:02:14.1]} 11... Bxd4 {[%clk 0:02:54.7]} 12. cxd4 {[%clk 0:02:13.9]}
12... Nxd5 {[%clk 0:02:55.1]} 13. Qf3 {[%clk 0:02:12.5]} 13... Be6 {[%clk
0:02:51.9]} 14. Rac1 {[%clk 0:02:10.5]} 14... c6 {[%clk 0:02:52]} 15. Rfe1
{[%clk 0:02:09.4]} 15... Re8 {[%clk 0:02:51.5]} 16. Ne4 {[%clk 0:02:09]} 16...
h6 {[%clk 0:02:47.7]} 17. Nc5 {[%clk 0:02:08.1]} 17... Qb6 {[%clk 0:02:25.8]}
18. Nxe6 {[%clk 0:02:03.3]} 18... fxe6 {[%clk 0:02:18.6]} 19. b3 {[%clk
0:01:38]} 19... Qxd4 {[%clk 0:02:16]} 20. Rcd1 {[%clk 0:01:38]} 20... Qf6 {[%clk
0:02:13.9]} 21. Qg4 {[%clk 0:01:36.9]} 21... Rad8 {[%clk 0:02:07.2]} 22. h3
{[%clk 0:01:36.3]} 22... b5 {[%clk 0:02:03.4]} 23. Bd3 {[%clk 0:01:33.2]} 23...
Nf4 {[%clk 0:01:55]} 24. Be4 {[%clk 0:01:25.9]} 24... e5 {[%clk 0:01:48.1]} 25.
g3 {[%clk 0:01:22.5]} 25... Nd5 {[%clk 0:01:46.7]} 26. h4 {[%clk 0:01:10]} 26...
Nc3 {[%clk 0:01:42.7]} 27. Rxd8 {[%clk 0:01:08.4]} 27... Rxd8 {[%clk 0:01:43.2]}
28. Bc2 {[%clk 0:00:50.9]} 28... b4 {[%clk 0:01:28.9]} 29. Qxb4 {[%clk
0:00:47.9]} 29... Nxa2 {[%clk 0:01:23]} 30. Qc4+ {[%clk 0:00:45.2]} 30... Kh8
{[%clk 0:01:12.6]} 31. Qe4 {[%clk 0:00:39]} 31... g6 {[%clk 0:01:11.7]} 32. Qxe5
{[%clk 0:00:34.1]} 32... Qxe5 {[%clk 0:01:11.2]} 33. Rxe5 {[%clk 0:00:34.5]}
33... Rd6 {[%clk 0:01:08.5]} 34. Ra5 {[%clk 0:00:33.3]} 34... Nb4 {[%clk
0:01:07.8]} 35. Be4 {[%clk 0:00:32.6]} 35... a6 {[%clk 0:01:07.4]} 36. Ra4
{[%clk 0:00:30.4]} 36... c5 {[%clk 0:01:06.2]} 37. Ra5 {[%clk 0:00:29.9]} 37...
Kg7 {[%clk 0:00:47.2]} 38. Rxc5 {[%clk 0:00:28.9]} 38... Kf6 {[%clk 0:00:47.6]}
39. f3 {[%clk 0:00:28.3]} 39... Rd1+ {[%clk 0:00:44.3]} 40. Kf2 {[%clk 0:00:28]}
40... Rd6 {[%clk 0:00:42.5]} 41. g4 {[%clk 0:00:28.1]} 41... Rb6 {[%clk
0:00:28.5]} 42. g5+ {[%clk 0:00:28.2]} 42... hxg5 {[%clk 0:00:28.2]} 43. hxg5+
{[%clk 0:00:28.5]} 43... Ke7 {[%clk 0:00:28.5]} 44. Ke3 {[%clk 0:00:28.9]} 44...
Na2 {[%clk 0:00:27.8]} 45. Rc7+ {[%clk 0:00:27.9]} 45... Kd6 {[%clk 0:00:27.5]}
46. Rg7 {[%clk 0:00:25.8]} 46... Rxb3+ {[%clk 0:00:26.6]} 47. Kf4 {[%clk
0:00:26.1]} 47... Kc5 {[%clk 0:00:24]} 48. Rxg6 {[%clk 0:00:25.9]} 48... a5
{[%clk 0:00:24.4]} 49. Rf6 {[%clk 0:00:24.9]} 49... Nc3 {[%clk 0:00:20.6]} 50.
g6 {[%clk 0:00:24.7]} 50... Ne2+ {[%clk 0:00:16.2]} 51. Ke5 {[%clk 0:00:24.4]}
51... Rb8 {[%clk 0:00:09.5]} 52. g7 {[%clk 0:00:24.5]} 52... a4 {[%clk
0:00:09.4]} 53. Rf8 {[%clk 0:00:22.8]} 53... Rb4 {[%clk 0:00:03.5]} 54. g8=Q
{[%clk 0:00:19.6]} 54... Nc3 {[%clk 0:00:04.4]} 55. Rc8+ {[%clk 0:00:18]} 55...
Kb5 {[%clk 0:00:02.8]} 56. Qe8+ {[%clk 0:00:15.3]} 56... Ka5 {[%clk 0:00:02.8]}
57. Ra8+ {[%clk 0:00:14.7]} 57... Kb6 {[%clk 0:00:03]} 58. Qb8+ {[%clk 0:00:14]}
58... Kc5 {[%clk 0:00:03.1]} 59. Qc7+ {[%clk 0:00:10.9]} 59... Kb5 {[%clk
0:00:02.2]} 60. Rb8+ {[%clk 0:00:10.9]} 60... Ka6 {[%clk 0:00:01.3]} 61. Rxb4
{[%clk 0:00:10]} 61... Nb5 {[%clk 0:00:01.3]} 62. Qc6+ {[%clk 0:00:07.8]} 1-0

[Event "*** Titled Tuesday Blitz"]
[Site "Chess.com"]
[Date "2020.05.05"]
[Round "9"]
[White "LiderChessAcademy"]
[Black "ajdemipopushi"]
[Result "0-1"]
[WhiteElo "2439"]
[BlackElo "2306"]
[TimeControl "180+1"]
[EndTime "11:49:14 PDT"]
[Termination "ajdemipopushi won by resignation"]

1. d4 {[%clk 0:03:00.9]} 1... Nf6 {[%clk 0:02:58.9]} 2. Bg5 {[%clk 0:03:00.4]}
2... c5 {[%clk 0:02:58.8]} 3. Bxf6 {[%clk 0:02:57.9]} 3... gxf6 {[%clk
0:02:58.9]} 4. d5 {[%clk 0:02:58.3]} 4... Qb6 {[%clk 0:02:58.8]} 5. Qc1 {[%clk
0:02:58.5]} 5... f5 {[%clk 0:02:52.2]} 6. c4 {[%clk 0:02:57.8]} 6... Bg7 {[%clk
0:02:35.4]} 7. Nc3 {[%clk 0:02:56.5]} 7... d6 {[%clk 0:02:22]} 8. e3 {[%clk
0:02:53.1]} 8... e5 {[%clk 0:02:17.3]} 9. Nf3 {[%clk 0:02:48]} 9... e4 {[%clk
0:02:07.3]} 10. Nh4 {[%clk 0:02:46]} 10... Bf6 {[%clk 0:02:06.7]} 11. g3 {[%clk
0:02:45.5]} 11... Bxh4 {[%clk 0:01:56.9]} 12. gxh4 {[%clk 0:02:46.4]} 12... Nd7
{[%clk 0:01:56.7]} 13. Be2 {[%clk 0:02:36.2]} 13... Ne5 {[%clk 0:01:53.3]} 14.
Qc2 {[%clk 0:02:33.3]} 14... Qd8 {[%clk 0:01:50.7]} 15. h5 {[%clk 0:02:27]}
15... Rg8 {[%clk 0:01:43.9]} 16. O-O-O {[%clk 0:02:23.5]} 16... Qh4 {[%clk
0:01:26.1]} 17. Rhg1 {[%clk 0:02:21.5]} 17... Rxg1 {[%clk 0:01:22.1]} 18. Rxg1
{[%clk 0:02:22.4]} 18... Qxf2 {[%clk 0:01:17]} 19. Rg8+ {[%clk 0:02:20.3]} 19...
Ke7 {[%clk 0:01:17]} 20. Nb5 {[%clk 0:01:45.2]} 20... Qxe3+ {[%clk 0:01:11]} 21.
Kb1 {[%clk 0:01:36.7]} 21... f4 {[%clk 0:00:53.4]} 22. Nc7 {[%clk 0:01:28.8]}
22... f3 {[%clk 0:00:44]} 23. Bd1 {[%clk 0:01:10.8]} 23... Rb8 {[%clk
0:00:41.9]} 24. a3 {[%clk 0:01:06.4]} 24... Qd3 {[%clk 0:00:25.3]} 25. Kc1
{[%clk 0:00:52]} 25... Qxc4 {[%clk 0:00:22.1]} 26. Qxc4 {[%clk 0:00:46.1]} 26...
Nxc4 {[%clk 0:00:22.1]} 27. b3 {[%clk 0:00:39.5]} 27... Ne3 {[%clk 0:00:18.8]}
28. Kd2 {[%clk 0:00:39.5]} 28... Nxd1 {[%clk 0:00:18.1]} 29. Kxd1 {[%clk
0:00:39.5]} 29... e3 {[%clk 0:00:18.5]} 30. Ke1 {[%clk 0:00:37.8]} 30... b5
{[%clk 0:00:15.2]} 31. Re8+ {[%clk 0:00:27.8]} 31... Kf6 {[%clk 0:00:14.5]} 32.
Rxe3 {[%clk 0:00:28.1]} 32... Bg4 {[%clk 0:00:14.3]} 33. Ne8+ {[%clk 0:00:25.8]}
33... Kg5 {[%clk 0:00:11.1]} 34. Nxd6 {[%clk 0:00:25.9]} 34... b4 {[%clk
0:00:10]} 35. a4 {[%clk 0:00:20.1]} 35... Bxh5 {[%clk 0:00:07.2]} 36. Kf2 {[%clk
0:00:18.8]} 36... Rd8 {[%clk 0:00:06.7]} 37. Ne4+ {[%clk 0:00:18.9]} 37... Kf4
{[%clk 0:00:06.5]} 38. d6 {[%clk 0:00:17.7]} 38... f5 {[%clk 0:00:06.5]} 39. Ng3
{[%clk 0:00:17.8]} 39... Rxd6 {[%clk 0:00:06.5]} 40. Nxh5+ {[%clk 0:00:18]}
40... Kg4 {[%clk 0:00:06.8]} 41. Rxf3 {[%clk 0:00:15.1]} 41... Kxh5 {[%clk
0:00:06.3]} 42. Rxf5+ {[%clk 0:00:15.1]} 42... Kg4 {[%clk 0:00:05.8]} 43. Rxc5
{[%clk 0:00:16]} 43... Rd3 {[%clk 0:00:05.4]} 44. Rc4+ {[%clk 0:00:15.5]} 44...
Kf5 {[%clk 0:00:05.8]} 45. Rxb4 {[%clk 0:00:16.4]} 45... Rd2+ {[%clk 0:00:06.2]}
46. Kg3 {[%clk 0:00:16.1]} 46... Rd3+ {[%clk 0:00:06.6]} 47. Kh4 {[%clk
0:00:16.3]} 47... Rd2 {[%clk 0:00:06.4]} 48. h3 {[%clk 0:00:16.6]} 48... Kg6
{[%clk 0:00:05.8]} 49. Rb7 {[%clk 0:00:16.5]} 49... Rd4+ {[%clk 0:00:05.3]} 50.
Kg3 {[%clk 0:00:16.7]} 50... Rd3+ {[%clk 0:00:05.9]} 51. Kg4 {[%clk 0:00:17.1]}
51... h5+ {[%clk 0:00:06.5]} 52. Kf4 {[%clk 0:00:17.1]} 52... Rxh3 {[%clk
0:00:06.6]} 53. b4 {[%clk 0:00:17.4]} 53... Rb3 {[%clk 0:00:06.3]} 54. b5 {[%clk
0:00:17.7]} 54... Rb4+ {[%clk 0:00:06.7]} 55. Ke5 {[%clk 0:00:17.3]} 55... Rxa4
{[%clk 0:00:07.3]} 56. Kd6 {[%clk 0:00:16.7]} 56... h4 {[%clk 0:00:07.5]} 57.
Kc5 {[%clk 0:00:16.8]} 57... h3 {[%clk 0:00:06.8]} 58. Rb8 {[%clk 0:00:17.1]}
58... h2 {[%clk 0:00:06.7]} 59. Rh8 {[%clk 0:00:17]} 59... Ra2 {[%clk
0:00:07.2]} 60. Kc6 {[%clk 0:00:17.2]} 60... Kf5 {[%clk 0:00:07.6]} 61. Kc5
{[%clk 0:00:13.7]} 61... Kg4 {[%clk 0:00:07.9]} 62. Kb4 {[%clk 0:00:14.6]} 62...
Kf3 {[%clk 0:00:08]} 63. Kb3 {[%clk 0:00:15.5]} 63... Rg2 {[%clk 0:00:07.9]} 64.
Kc3 {[%clk 0:00:12.7]} 64... Kf2 {[%clk 0:00:08.2]} 65. Kd2 {[%clk 0:00:12.5]}
65... Kg1+ {[%clk 0:00:08.5]} 66. Ke1 {[%clk 0:00:13.2]} 66... h1=Q {[%clk
0:00:09]} 67. Rxh1+ {[%clk 0:00:12.7]} 67... Kxh1 {[%clk 0:00:09.3]} 0-1